[Event "*** Titled Tuesday Blitz"]
[Site "Chess.com"]
[Date "2020.04.07"]
[Round "4"]
[White "Siemba"]
[Black "gmkomarov"]
[Result "0-1"]
[WhiteElo "2224"]
[BlackElo "2492"]
[TimeControl "180+1"]
[EndTime "13:41:36 PDT"]
[Termination "gmkomarov won on time"]

1. e4 {[%clk 0:03:00.9]} 1... e5 {[%clk 0:02:57.5]} 2. Nf3 {[%clk 0:02:56.2]}
2... Nc6 {[%clk 0:02:57.5]} 3. Bc4 {[%clk 0:02:52.3]} 3... Nf6 {[%clk
0:02:56.5]} 4. d3 {[%clk 0:02:52]} 4... Bc5 {[%clk 0:02:55.2]} 5. c3 {[%clk
0:02:51.6]} 5... d6 {[%clk 0:02:54.9]} 6. O-O {[%clk 0:02:51.1]} 6... a6 {[%clk
0:02:55]} 7. a4 {[%clk 0:02:50.5]} 7... h6 {[%clk 0:02:51.3]} 8. Nbd2 {[%clk
0:02:47.7]} 8... Ba7 {[%clk 0:02:49.6]} 9. h3 {[%clk 0:02:47.2]} 9... O-O {[%clk
0:02:48.8]} 10. Re1 {[%clk 0:02:46.9]} 10... Be6 {[%clk 0:02:42.1]} 11. b4
{[%clk 0:02:45.4]} 11... Bxc4 {[%clk 0:02:34.8]} 12. Nxc4 {[%clk 0:02:43.9]}
12... Ne7 {[%clk 0:02:34.7]} 13. Be3 {[%clk 0:02:42.2]} 13... Ng6 {[%clk
0:02:34.6]} 14. Bxa7 {[%clk 0:02:41.8]} 14... Rxa7 {[%clk 0:02:33.6]} 15. g3
{[%clk 0:02:38.5]} 15... Qd7 {[%clk 0:02:33]} 16. Kg2 {[%clk 0:02:38.3]} 16...
Raa8 {[%clk 0:02:32.7]} 17. Qb3 {[%clk 0:02:36.5]} 17... Kh8 {[%clk 0:02:32.5]}
18. b5 {[%clk 0:02:36]} 18... axb5 {[%clk 0:02:31.5]} 19. axb5 {[%clk
0:02:36.9]} 19... Nh5 {[%clk 0:02:30.2]} 20. Ng1 {[%clk 0:02:18.3]} 20... Rxa1
{[%clk 0:02:25.8]} 21. Rxa1 {[%clk 0:02:19.2]} 21... f5 {[%clk 0:02:25.8]} 22.
exf5 {[%clk 0:02:10.4]} 22... Qxf5 {[%clk 0:02:24.4]} 23. Qc2 {[%clk 0:02:08.7]}
23... d5 {[%clk 0:02:06.6]} 24. Ne3 {[%clk 0:02:08.1]} 24... Qe6 {[%clk
0:02:06.5]} 25. d4 {[%clk 0:02:03]} 25... e4 {[%clk 0:02:00.6]} 26. c4 {[%clk
0:01:46.5]} 26... Nf6 {[%clk 0:01:47.9]} 27. cxd5 {[%clk 0:01:43.5]} 27... Nxd5
{[%clk 0:01:47.8]} 28. Re1 {[%clk 0:01:25.6]} 28... Re8 {[%clk 0:01:40.4]} 29.
Nc4 {[%clk 0:01:01.5]} 29... Kh7 {[%clk 0:01:29.8]} 30. Ne5 {[%clk 0:00:59.3]}
30... Nxe5 {[%clk 0:01:14.4]} 31. Qxe4+ {[%clk 0:00:58.2]} 31... Ng6 {[%clk
0:01:13.3]} 32. Qxe6 {[%clk 0:00:55.8]} 32... Rxe6 {[%clk 0:01:13.3]} 33. Rxe6
{[%clk 0:00:56.1]} 33... Ndf4+ {[%clk 0:01:13.4]} 34. gxf4 {[%clk 0:00:56.3]}
34... Nxf4+ {[%clk 0:01:13.5]} 35. Kf3 {[%clk 0:00:56.9]} 35... Nxe6 {[%clk
0:01:13.1]} 36. Ke4 {[%clk 0:00:55.8]} 36... Kg6 {[%clk 0:01:12.7]} 37. Ke5
{[%clk 0:00:55.6]} 37... Kf7 {[%clk 0:01:12.2]} 38. f4 {[%clk 0:00:52.3]} 38...
Nf8 {[%clk 0:01:11.3]} 39. Nf3 {[%clk 0:00:48]} 39... Nd7+ {[%clk 0:01:10.2]}
40. Ke4 {[%clk 0:00:39]} 40... Nf6+ {[%clk 0:01:09.8]} 41. Ke5 {[%clk
0:00:38.5]} 41... Ke7 {[%clk 0:01:09.1]} 42. Nh4 {[%clk 0:00:34.5]} 42... Nd7+
{[%clk 0:01:09]} 43. Kd5 {[%clk 0:00:28.9]} 43... Kf6 {[%clk 0:01:05.2]} 44. Ke4
{[%clk 0:00:28.5]} 44... Nb6 {[%clk 0:01:01.7]} 45. Nf3 {[%clk 0:00:27.3]} 45...
Nc4 {[%clk 0:01:00.5]} 46. Ne5 {[%clk 0:00:27.5]} 46... Nd6+ {[%clk 0:01:00.2]}
47. Kd5 {[%clk 0:00:26.5]} 47... Nxb5 {[%clk 0:01:00]} 48. Nd7+ {[%clk
0:00:25.1]} 48... Kf5 {[%clk 0:00:59.5]} 49. Nc5 {[%clk 0:00:25.2]} 49... b6
{[%clk 0:00:58.1]} 50. Na6 {[%clk 0:00:23]} 50... Kxf4 {[%clk 0:00:56.1]} 51.
Kc4 {[%clk 0:00:20.2]} 51... c6 {[%clk 0:00:52.3]} 52. Nb8 {[%clk 0:00:18.5]}
52... Na7 {[%clk 0:00:51.7]} 53. Nd7 {[%clk 0:00:17.1]} 53... Nc8 {[%clk
0:00:51.5]} 54. Ne5 {[%clk 0:00:14.3]} 54... Ne7 {[%clk 0:00:50.3]} 55. Nd7
{[%clk 0:00:13.3]} 55... Kg3 {[%clk 0:00:49.9]} 56. Nxb6 {[%clk 0:00:13]} 56...
Kxh3 {[%clk 0:00:50.1]} 57. Kc5 {[%clk 0:00:13.6]} 57... g5 {[%clk 0:00:49.8]}
58. Kd6 {[%clk 0:00:09.6]} 58... Nf5+ {[%clk 0:00:48.9]} 59. Ke5 {[%clk
0:00:09.9]} 59... g4 {[%clk 0:00:42.6]} 60. Nc4 {[%clk 0:00:03.5]} 60... g3
{[%clk 0:00:41]} 61. Nd2 {[%clk 0:00:03.7]} 61... Nh4 {[%clk 0:00:38.5]} 62. Kf4
{[%clk 0:00:02.4]} 62... g2 {[%clk 0:00:37.3]} 0-1

[Event "*** Titled Tuesday Blitz"]
[Site "Chess.com"]
[Date "2020.04.07"]
[Round "4"]
[White "AndrewMaco"]
[Black "IrI_Cheetah"]
[Result "1-0"]
[WhiteElo "2633"]
[BlackElo "2329"]
[TimeControl "180+1"]
[EndTime "13:41:37 PDT"]
[Termination "AndrewMaco won on time"]

1. d4 {[%clk 0:03:00.9]} 1... Nf6 {[%clk 0:02:58]} 2. c4 {[%clk 0:03:00.4]} 2...
b6 {[%clk 0:02:58.2]} 3. f3 {[%clk 0:02:48.1]} 3... Nc6 {[%clk 0:02:55.3]} 4. e4
{[%clk 0:02:39.9]} 4... e5 {[%clk 0:02:54.8]} 5. d5 {[%clk 0:02:36.1]} 5... Nd4
{[%clk 0:02:55]} 6. Ne2 {[%clk 0:02:33.3]} 6... Bc5 {[%clk 0:02:54.3]} 7. Nbc3
{[%clk 0:02:31.3]} 7... Nh5 {[%clk 0:02:54.1]} 8. Qd3 {[%clk 0:02:16.2]} 8...
Ba6 {[%clk 0:02:48.2]} 9. b3 {[%clk 0:02:11.3]} 9... O-O {[%clk 0:02:26.6]} 10.
Be3 {[%clk 0:01:59.5]} 10... f5 {[%clk 0:02:20.6]} 11. exf5 {[%clk 0:01:49.2]}
11... Nc2+ {[%clk 0:02:09.5]} 12. Qxc2 {[%clk 0:01:44.9]} 12... Bxe3 {[%clk
0:02:09.9]} 13. Qe4 {[%clk 0:01:34.1]} 13... Qg5 {[%clk 0:02:07]} 14. h4 {[%clk
0:01:26.7]} 14... Qh6 {[%clk 0:02:02.3]} 15. g4 {[%clk 0:01:22.1]} 15... Nf6
{[%clk 0:02:00]} 16. Qd3 {[%clk 0:01:02.3]} 16... Rae8 {[%clk 0:01:57.2]} 17.
Bg2 {[%clk 0:01:00.8]} 17... e4 {[%clk 0:01:52.3]} 18. Nxe4 {[%clk 0:00:59.8]}
18... Rxe4 {[%clk 0:01:52.2]} 19. fxe4 {[%clk 0:01:00.5]} 19... Nxg4 {[%clk
0:01:52.1]} 20. Rh3 {[%clk 0:00:51.1]} 20... Bf2+ {[%clk 0:01:29.2]} 21. Kd1
{[%clk 0:00:43.2]} 21... Ne3+ {[%clk 0:01:26.8]} 22. Rxe3 {[%clk 0:00:43.3]}
22... Bxe3 {[%clk 0:01:27.7]} 23. Kc2 {[%clk 0:00:41.9]} 23... Bc5 {[%clk
0:01:19.2]} 24. e5 {[%clk 0:00:39.9]} 24... Qxh4 {[%clk 0:01:11.1]} 25. Be4
{[%clk 0:00:38.5]} 25... h6 {[%clk 0:01:04.3]} 26. Rf1 {[%clk 0:00:20.6]} 26...
Qh2 {[%clk 0:01:03.7]} 27. e6 {[%clk 0:00:18]} 27... dxe6 {[%clk 0:01:02.1]} 28.
dxe6 {[%clk 0:00:18.9]} 28... Qe5 {[%clk 0:01:00.4]} 29. Bd5 {[%clk 0:00:15.9]}
29... Kh8 {[%clk 0:00:59]} 30. Qe4 {[%clk 0:00:15.9]} 30... Qh2 {[%clk
0:00:52.4]} 31. Kb1 {[%clk 0:00:15.1]} 31... Ba3 {[%clk 0:00:28]} 32. Qc2 {[%clk
0:00:14.5]} 32... Bd6 {[%clk 0:00:17.4]} 33. Nd4 {[%clk 0:00:10.6]} 33... Qh4
{[%clk 0:00:14.3]} 34. Qe4 {[%clk 0:00:09.1]} 34... Qf6 {[%clk 0:00:11.9]} 35.
Kc2 {[%clk 0:00:06.9]} 35... Bc8 {[%clk 0:00:09.8]} 36. Nc6 {[%clk 0:00:06.3]}
36... Qg5 {[%clk 0:00:06.9]} 37. Nd4 {[%clk 0:00:06.1]} 37... Qg3 {[%clk
0:00:06.3]} 38. Qf3 {[%clk 0:00:05.5]} 38... Qe5 {[%clk 0:00:05.4]} 39. Kd3
{[%clk 0:00:05.6]} 39... Bc5 {[%clk 0:00:05.2]} 40. Qe4 {[%clk 0:00:05.8]} 40...
Qg3+ {[%clk 0:00:05.7]} 41. Rf3 {[%clk 0:00:06.3]} 41... Qg1 {[%clk 0:00:05.3]}
42. Kc2 {[%clk 0:00:06.3]} 42... Bxd4 {[%clk 0:00:04.8]} 43. e7 {[%clk
0:00:05.1]} 43... Re8 {[%clk 0:00:05.1]} 44. Bc6 {[%clk 0:00:05.4]} 44... Qg2+
{[%clk 0:00:04.7]} 45. Kd3 {[%clk 0:00:05.4]} 45... Rxe7 {[%clk 0:00:04.7]} 46.
Qxe7 {[%clk 0:00:06.3]} 46... Bf6 {[%clk 0:00:02.7]} 47. Qe8+ {[%clk 0:00:06.4]}
47... Kh7 {[%clk 0:00:03.1]} 48. Qxc8 {[%clk 0:00:05.6]} 1-0

[Event "*** Titled Tuesday Blitz"]
[Site "Chess.com"]
[Date "2020.04.07"]
[Round "4"]
[White "Hubbery"]
[Black "DerKnipser"]
[Result "1-0"]
[WhiteElo "2628"]
[BlackElo "2315"]
[TimeControl "180+1"]
[EndTime "13:41:37 PDT"]
[Termination "Hubbery won by resignation"]

1. d4 {[%clk 0:03:00.9]} 1... f5 {[%clk 0:02:57.6]} 2. Nc3 {[%clk 0:03:00.1]}
2... Nf6 {[%clk 0:02:58.2]} 3. Bg5 {[%clk 0:02:58.2]} 3... d5 {[%clk 0:02:56.4]}
4. Bxf6 {[%clk 0:02:55.4]} 4... exf6 {[%clk 0:02:56.8]} 5. e3 {[%clk 0:02:56.3]}
5... c6 {[%clk 0:02:56.9]} 6. Bd3 {[%clk 0:02:55.3]} 6... g6 {[%clk 0:02:57.1]}
7. h4 {[%clk 0:02:55.5]} 7... h5 {[%clk 0:02:55]} 8. Nh3 {[%clk 0:02:49.9]} 8...
Be6 {[%clk 0:02:48.1]} 9. Ne2 {[%clk 0:02:43.5]} 9... Bf7 {[%clk 0:02:46.7]} 10.
Qd2 {[%clk 0:02:41.9]} 10... Nd7 {[%clk 0:02:38.1]} 11. Nhf4 {[%clk 0:02:35.5]}
11... Nb6 {[%clk 0:02:33.3]} 12. b3 {[%clk 0:02:30.6]} 12... Nc8 {[%clk
0:02:33]} 13. c4 {[%clk 0:02:26.9]} 13... Nd6 {[%clk 0:02:26.5]} 14. c5 {[%clk
0:02:26.5]} 14... Ne4 {[%clk 0:02:26]} 15. Qc2 {[%clk 0:02:19.4]} 15... Qa5+
{[%clk 0:02:21.5]} 16. Kf1 {[%clk 0:02:19.4]} 16... g5 {[%clk 0:02:12]} 17. Nh3
{[%clk 0:02:15.5]} 17... gxh4 {[%clk 0:01:39.6]} 18. Nhf4 {[%clk 0:02:11.5]}
18... Bh6 {[%clk 0:01:31.8]} 19. Rxh4 {[%clk 0:02:11.1]} 19... Bxf4 {[%clk
0:01:29.2]} 20. Nxf4 {[%clk 0:02:09.2]} 20... O-O-O {[%clk 0:01:24.7]} 21. f3
{[%clk 0:02:05.2]} 21... Ng3+ {[%clk 0:01:22.9]} 22. Kf2 {[%clk 0:02:05]} 22...
Rdg8 {[%clk 0:01:21.7]} 23. a3 {[%clk 0:01:54.9]} 23... Qc7 {[%clk 0:01:20.2]}
24. b4 {[%clk 0:01:54.2]} 24... Kb8 {[%clk 0:01:10.7]} 25. b5 {[%clk 0:01:53.6]}
25... cxb5 {[%clk 0:01:04.1]} 26. Bxb5 {[%clk 0:01:47.6]} 26... Be8 {[%clk
0:01:01.3]} 27. Bd3 {[%clk 0:01:45.3]} 27... Qa5 {[%clk 0:00:52.4]} 28. Nxd5
{[%clk 0:01:38.4]} 28... Ba4 {[%clk 0:00:51]} 29. Qb2 {[%clk 0:01:35.5]} 29...
Bc6 {[%clk 0:00:38.7]} 30. Ne7 {[%clk 0:01:34.6]} 30... Qc7 {[%clk 0:00:37.6]}
31. Nxg8 {[%clk 0:01:24.1]} 31... Rxg8 {[%clk 0:00:38.5]} 32. Rf4 {[%clk
0:01:21.4]} 32... h4 {[%clk 0:00:38]} 33. Qb3 {[%clk 0:01:17.8]} 33... Qg7
{[%clk 0:00:37.9]} 34. Rg1 {[%clk 0:00:47.8]} 34... h3 {[%clk 0:00:38.4]} 35.
Qxg8+ {[%clk 0:00:43.5]} 35... Qxg8 {[%clk 0:00:36.7]} 36. gxh3 {[%clk
0:00:44.4]} 36... Ne4+ {[%clk 0:00:31.2]} 37. fxe4 {[%clk 0:00:39.4]} 37... Qh7
{[%clk 0:00:30.8]} 38. d5 {[%clk 0:00:35]} 38... fxe4 {[%clk 0:00:27.9]} 39.
Bxe4 {[%clk 0:00:33]} 39... Bd7 {[%clk 0:00:26.1]} 40. h4 {[%clk 0:00:32.2]}
40... f5 {[%clk 0:00:24.7]} 41. Bf3 {[%clk 0:00:30.8]} 41... a5 {[%clk
0:00:21.4]} 42. d6 {[%clk 0:00:27.2]} 42... Qf7 {[%clk 0:00:20.4]} 43. h5 {[%clk
0:00:20.9]} 43... Qa2+ {[%clk 0:00:20.7]} 44. Be2 {[%clk 0:00:21.4]} 44... Qxa3
{[%clk 0:00:21.2]} 45. h6 {[%clk 0:00:21.2]} 45... Qxc5 {[%clk 0:00:21.6]} 46.
h7 {[%clk 0:00:21.2]} 46... Qxd6 {[%clk 0:00:22.1]} 47. h8=Q+ {[%clk 0:00:21.1]}
47... Ka7 {[%clk 0:00:22.9]} 48. Qd4+ {[%clk 0:00:21.5]} 48... Qxd4 {[%clk
0:00:23.8]} 49. Rxd4 {[%clk 0:00:22.4]} 49... Bc6 {[%clk 0:00:24.4]} 50. Rg7
{[%clk 0:00:22.8]} 50... Kb6 {[%clk 0:00:25.3]} 51. Bf3 {[%clk 0:00:23.2]} 51...
Kc5 {[%clk 0:00:26.2]} 52. Bxc6 {[%clk 0:00:23.1]} 52... bxc6 {[%clk 0:00:27.1]}
53. Rf4 {[%clk 0:00:24]} 53... a4 {[%clk 0:00:27.9]} 54. Rxf5+ {[%clk
0:00:24.9]} 54... Kb6 {[%clk 0:00:28.8]} 55. Rg8 {[%clk 0:00:24.9]} 55... c5
{[%clk 0:00:29.7]} 56. Ra8 {[%clk 0:00:25.4]} 56... Kb5 {[%clk 0:00:30.6]} 57.
Rf6 {[%clk 0:00:23.4]} 57... c4 {[%clk 0:00:30.8]} 58. Rfa6 {[%clk 0:00:23.3]}
58... c3 {[%clk 0:00:31.1]} 59. Rxa4 {[%clk 0:00:24.2]} 59... c2 {[%clk
0:00:32]} 60. Ra1 {[%clk 0:00:25.1]} 1-0

[Event "*** Titled Tuesday Blitz"]
[Site "Chess.com"]
[Date "2020.04.07"]
[Round "4"]
[White "WelshTiger"]
[Black "nickmatta"]
[Result "1-0"]
[WhiteElo "2403"]
[BlackElo "2224"]
[TimeControl "180+1"]
[EndTime "13:41:37 PDT"]
[Termination "WelshTiger won on time"]

1. e4 {[%clk 0:03:00.9]} 1... e5 {[%clk 0:02:58.6]} 2. Nf3 {[%clk 0:03:00.1]}
2... Nc6 {[%clk 0:02:56.7]} 3. Nc3 {[%clk 0:03:00.2]} 3... Nf6 {[%clk
0:02:56.1]} 4. d4 {[%clk 0:03:00.2]} 4... exd4 {[%clk 0:02:56.4]} 5. Nxd4 {[%clk
0:03:00.2]} 5... Bb4 {[%clk 0:02:57.1]} 6. Nxc6 {[%clk 0:03:00.1]} 6... bxc6
{[%clk 0:02:58]} 7. Bd3 {[%clk 0:03:00.4]} 7... d5 {[%clk 0:02:58.1]} 8. exd5
{[%clk 0:03:00.1]} 8... cxd5 {[%clk 0:02:59]} 9. O-O {[%clk 0:02:59.9]} 9... O-O
{[%clk 0:02:58.5]} 10. h3 {[%clk 0:03:00.2]} 10... h6 {[%clk 0:02:58]} 11. Qf3
{[%clk 0:03:00.2]} 11... c6 {[%clk 0:02:57.6]} 12. Bf4 {[%clk 0:02:59.9]} 12...
Bd6 {[%clk 0:02:55.1]} 13. Rfe1 {[%clk 0:02:59.1]} 13... Rb8 {[%clk 0:02:55.2]}
14. b3 {[%clk 0:02:58.9]} 14... Be6 {[%clk 0:02:53.9]} 15. Rad1 {[%clk
0:02:50.6]} 15... Qc7 {[%clk 0:02:51.2]} 16. Bxd6 {[%clk 0:02:49.7]} 16... Qxd6
{[%clk 0:02:51.3]} 17. Ne2 {[%clk 0:02:50.6]} 17... Rfe8 {[%clk 0:02:45.9]} 18.
c4 {[%clk 0:02:45.7]} 18... Bd7 {[%clk 0:02:37.9]} 19. Ng3 {[%clk 0:02:28.1]}
19... d4 {[%clk 0:02:28]} 20. Nf5 {[%clk 0:02:19]} 20... Bxf5 {[%clk 0:02:26.6]}
21. Qxf5 {[%clk 0:02:19.9]} 21... c5 {[%clk 0:02:21.1]} 22. g3 {[%clk
0:01:45.2]} 22... g6 {[%clk 0:02:19.8]} 23. Qf3 {[%clk 0:01:44.2]} 23... Kg7
{[%clk 0:02:19.4]} 24. Bf1 {[%clk 0:01:43]} 24... Rbd8 {[%clk 0:02:17]} 25. Bg2
{[%clk 0:01:37.2]} 25... Rxe1+ {[%clk 0:02:13.9]} 26. Rxe1 {[%clk 0:01:36.8]}
26... d3 {[%clk 0:02:14.8]} 27. Rd1 {[%clk 0:01:36.6]} 27... d2 {[%clk
0:02:13.5]} 28. Qc3 {[%clk 0:01:33.4]} 28... Rd7 {[%clk 0:01:57.3]} 29. Bf3
{[%clk 0:01:32.9]} 29... h5 {[%clk 0:01:54.1]} 30. Bd5 {[%clk 0:01:22.7]} 30...
h4 {[%clk 0:01:13]} 31. g4 {[%clk 0:01:20.1]} 31... Qf4 {[%clk 0:01:04]} 32.
Rxd2 {[%clk 0:01:03.8]} 32... Kh7 {[%clk 0:00:59.9]} 33. Rd3 {[%clk 0:00:59.2]}
33... Re7 {[%clk 0:00:43.4]} 34. Rf3 {[%clk 0:00:57.8]} 34... Nxd5 {[%clk
0:00:43.9]} 35. cxd5 {[%clk 0:00:52.7]} 35... Qd6 {[%clk 0:00:13.9]} 36. Qd3
{[%clk 0:00:40.7]} 36... Re1+ {[%clk 0:00:08.7]} 37. Kg2 {[%clk 0:00:40.9]}
37... Kg8 {[%clk 0:00:07.8]} 38. Qd2 {[%clk 0:00:17.3]} 38... Re4 {[%clk
0:00:04.6]} 39. Rd3 {[%clk 0:00:12.5]} 39... a5 {[%clk 0:00:02]} 40. Qxa5 {[%clk
0:00:09.2]} 40... c4 {[%clk 0:00:01.6]} 41. bxc4 {[%clk 0:00:07.5]} 41... Rxc4
{[%clk 0:00:02.5]} 42. Qd2 {[%clk 0:00:07]} 42... Kh7 {[%clk 0:00:01.5]} 43. Rc3
{[%clk 0:00:06.5]} 43... Rxc3 {[%clk 0:00:01.4]} 44. Qxc3 {[%clk 0:00:06.6]}
44... Qxd5+ {[%clk 0:00:02.3]} 45. Qf3 {[%clk 0:00:07.1]} 45... Qxa2 {[%clk
0:00:02.8]} 46. g5 {[%clk 0:00:07.2]} 46... Qe6 {[%clk 0:00:02.7]} 47. Qf4
{[%clk 0:00:06.5]} 47... Qd5+ {[%clk 0:00:02.3]} 48. Kh2 {[%clk 0:00:06.1]} 1-0

[Event "*** Titled Tuesday Blitz"]
[Site "Chess.com"]
[Date "2020.04.07"]
[Round "4"]
[White "CalinGheorghiu"]
[Black "joksijoksi"]
[Result "1/2-1/2"]
[WhiteElo "2445"]
[BlackElo "2271"]
[TimeControl "180+1"]
[EndTime "13:41:38 PDT"]
[Termination "Game drawn by repetition"]

1. e4 {[%clk 0:03:00.9]} 1... e6 {[%clk 0:02:54.2]} 2. d4 {[%clk 0:03:00.1]}
2... d5 {[%clk 0:02:53.6]} 3. Nc3 {[%clk 0:02:57.9]} 3... Bb4 {[%clk 0:02:53.6]}
4. e5 {[%clk 0:02:57.5]} 4... c5 {[%clk 0:02:53]} 5. a3 {[%clk 0:02:57.5]} 5...
Bxc3+ {[%clk 0:02:50.2]} 6. bxc3 {[%clk 0:02:57.7]} 6... Qa5 {[%clk 0:02:37.7]}
7. Bd2 {[%clk 0:02:56.7]} 7... Qa4 {[%clk 0:02:36.8]} 8. Qg4 {[%clk 0:02:54.5]}
8... Kf8 {[%clk 0:02:34.9]} 9. Qd1 {[%clk 0:02:52.6]} 9... b6 {[%clk 0:02:32.6]}
10. Nf3 {[%clk 0:02:50.6]} 10... Ba6 {[%clk 0:02:30]} 11. Bxa6 {[%clk
0:02:48.5]} 11... Qxa6 {[%clk 0:02:29.1]} 12. h4 {[%clk 0:02:47.2]} 12... Nd7
{[%clk 0:02:26.2]} 13. h5 {[%clk 0:02:44.4]} 13... h6 {[%clk 0:02:24.9]} 14. a4
{[%clk 0:02:44.1]} 14... Ne7 {[%clk 0:02:20.1]} 15. a5 {[%clk 0:02:30.1]} 15...
Qc8 {[%clk 0:01:46.9]} 16. O-O {[%clk 0:02:18.9]} 16... Nc6 {[%clk 0:01:44.5]}
17. axb6 {[%clk 0:02:16.1]} 17... axb6 {[%clk 0:01:43.2]} 18. c4 {[%clk
0:02:13]} 18... dxc4 {[%clk 0:01:38.7]} 19. Be3 {[%clk 0:02:13]} 19... Nb4
{[%clk 0:01:22.9]} 20. Rxa8 {[%clk 0:02:06.8]} 20... Qxa8 {[%clk 0:01:21.1]} 21.
dxc5 {[%clk 0:02:06.7]} 21... Nd5 {[%clk 0:01:21]} 22. cxb6 {[%clk 0:01:59.9]}
22... Nxe3 {[%clk 0:01:13.1]} 23. Qd6+ {[%clk 0:01:57.3]} 23... Kg8 {[%clk
0:01:03.4]} 24. fxe3 {[%clk 0:01:54.8]} 24... Qb7 {[%clk 0:00:56.5]} 25. Rb1
{[%clk 0:01:42]} 25... Kh7 {[%clk 0:00:54.1]} 26. Qe7 {[%clk 0:01:27.3]} 26...
Rf8 {[%clk 0:00:40.9]} 27. Rd1 {[%clk 0:01:12.4]} 27... Qxb6 {[%clk 0:00:33.6]}
28. Qxd7 {[%clk 0:01:11.6]} 28... Qxe3+ {[%clk 0:00:33.9]} 29. Kh1 {[%clk
0:01:11.2]} 29... Qe4 {[%clk 0:00:21.4]} 30. Qd4 {[%clk 0:00:53.5]} 30... Qxc2
{[%clk 0:00:17]} 31. Rd2 {[%clk 0:00:53.4]} 31... Qb1+ {[%clk 0:00:13.6]} 32.
Kh2 {[%clk 0:00:53.1]} 32... Qf5 {[%clk 0:00:13.8]} 33. Qxc4 {[%clk 0:00:47.9]}
33... Qxh5+ {[%clk 0:00:12.4]} 34. Qh4 {[%clk 0:00:46.6]} 34... Qf5 {[%clk
0:00:10.6]} 35. Rf2 {[%clk 0:00:44.6]} 35... Rc8 {[%clk 0:00:08.2]} 36. Qh3
{[%clk 0:00:38]} 36... Qg6 {[%clk 0:00:03.6]} 37. Nh4 {[%clk 0:00:34.7]} 37...
Qg5 {[%clk 0:00:03.2]} 38. Qg3 {[%clk 0:00:33.8]} 38... Qxg3+ {[%clk 0:00:03]}
39. Kxg3 {[%clk 0:00:33.8]} 39... g5 {[%clk 0:00:03.5]} 40. Nf3 {[%clk
0:00:33.4]} 40... Kg6 {[%clk 0:00:03.5]} 41. Nd2 {[%clk 0:00:31.6]} 41... Rc3+
{[%clk 0:00:02.5]} 42. Rf3 {[%clk 0:00:30.3]} 42... Rxf3+ {[%clk 0:00:02.7]} 43.
gxf3 {[%clk 0:00:23.1]} 43... Kf5 {[%clk 0:00:02.5]} 44. Nc4 {[%clk 0:00:20.7]}
44... f6 {[%clk 0:00:01.5]} 45. exf6 {[%clk 0:00:20.9]} 45... Kxf6 {[%clk
0:00:02.2]} 46. Kg4 {[%clk 0:00:21.4]} 46... Kg6 {[%clk 0:00:01.6]} 47. Ne5+
{[%clk 0:00:21.4]} 47... Kf6 {[%clk 0:00:01.7]} 48. Nd7+ {[%clk 0:00:21.9]}
48... Kg6 {[%clk 0:00:02.2]} 49. Nf8+ {[%clk 0:00:20.1]} 49... Kf7 {[%clk
0:00:02.2]} 50. Nd7 {[%clk 0:00:20.5]} 50... Kg6 {[%clk 0:00:02.2]} 51. Ne5+
{[%clk 0:00:19.7]} 51... Kf6 {[%clk 0:00:02.7]} 52. Nd3 {[%clk 0:00:17.8]} 52...
Kg6 {[%clk 0:00:03]} 53. Ne5+ {[%clk 0:00:16.4]} 1/2-1/2

[Event "*** Titled Tuesday Blitz"]
[Site "Chess.com"]
[Date "2020.04.07"]
[Round "4"]
[White "Noam_Vitenberg"]
[Black "imdarealist"]
[Result "1-0"]
[WhiteElo "2430"]
[BlackElo "2218"]
[TimeControl "180+1"]
[EndTime "13:41:38 PDT"]
[Termination "Noam_Vitenberg won by resignation"]

1. e4 {[%clk 0:03:00.9]} 1... e5 {[%clk 0:02:59.4]} 2. Nc3 {[%clk 0:03:00.3]}
2... Nf6 {[%clk 0:02:59.4]} 3. Bc4 {[%clk 0:03:00]} 3... Bb4 {[%clk 0:02:55.5]}
4. a3 {[%clk 0:02:58.9]} 4... Bxc3 {[%clk 0:02:53.3]} 5. dxc3 {[%clk 0:02:59.8]}
5... O-O {[%clk 0:02:52]} 6. f3 {[%clk 0:02:59.7]} 6... d6 {[%clk 0:02:45.7]} 7.
Ne2 {[%clk 0:02:58.6]} 7... Be6 {[%clk 0:02:46.1]} 8. Bd3 {[%clk 0:02:52.2]}
8... c6 {[%clk 0:02:43.9]} 9. Bg5 {[%clk 0:02:51.2]} 9... Nbd7 {[%clk
0:02:41.2]} 10. Qd2 {[%clk 0:02:43.9]} 10... a5 {[%clk 0:02:31.5]} 11. O-O-O
{[%clk 0:02:43]} 11... b5 {[%clk 0:02:23.5]} 12. g4 {[%clk 0:02:39.4]} 12... Qb6
{[%clk 0:02:13.6]} 13. Ng3 {[%clk 0:02:35.9]} 13... b4 {[%clk 0:02:12.4]} 14.
cxb4 {[%clk 0:02:35.8]} 14... axb4 {[%clk 0:02:13.3]} 15. Qxb4 {[%clk
0:02:35.9]} 15... Qc7 {[%clk 0:01:53.9]} 16. Nf5 {[%clk 0:02:12.5]} 16... c5
{[%clk 0:01:27.8]} 17. Qc3 {[%clk 0:01:55.3]} 17... c4 {[%clk 0:00:59.6]} 18.
Be2 {[%clk 0:01:50]} 18... Ra6 {[%clk 0:00:52.9]} 19. Ne7+ {[%clk 0:00:49.5]}
19... Kh8 {[%clk 0:00:52.6]} 20. Nd5 {[%clk 0:00:50.4]} 20... Bxd5 {[%clk
0:00:35]} 21. exd5 {[%clk 0:00:50.2]} 21... Rc8 {[%clk 0:00:35.9]} 22. Be3
{[%clk 0:00:26.2]} 22... Qb7 {[%clk 0:00:35.4]} 23. Bxc4 {[%clk 0:00:23.5]}
23... Ra4 {[%clk 0:00:35.4]} 24. Qb3 {[%clk 0:00:21.9]} 24... Qa8 {[%clk
0:00:27.3]} 25. Bb5 {[%clk 0:00:20.7]} 25... Ra5 {[%clk 0:00:18.6]} 26. Bc6
{[%clk 0:00:20.3]} 26... Qb8 {[%clk 0:00:17]} 27. Qxb8 {[%clk 0:00:18.4]} 27...
Rxb8 {[%clk 0:00:17.9]} 28. g5 {[%clk 0:00:18.2]} 28... Nc5 {[%clk 0:00:16]} 29.
Bxc5 {[%clk 0:00:17.1]} 29... Rxc5 {[%clk 0:00:15.6]} 30. gxf6 {[%clk 0:00:17]}
30... gxf6 {[%clk 0:00:16.4]} 31. Rd3 {[%clk 0:00:15.2]} 31... Rb6 {[%clk
0:00:15.2]} 32. b4 {[%clk 0:00:15.1]} 32... Rc4 {[%clk 0:00:14.9]} 33. Kb2
{[%clk 0:00:13.7]} 33... f5 {[%clk 0:00:14.4]} 34. Kb3 {[%clk 0:00:13.7]} 34...
Rh4 {[%clk 0:00:12.5]} 35. c4 {[%clk 0:00:13.6]} 35... Kg7 {[%clk 0:00:12.2]}
36. a4 {[%clk 0:00:07]} 36... e4 {[%clk 0:00:12.5]} 37. fxe4 {[%clk 0:00:07.3]}
37... fxe4 {[%clk 0:00:13.4]} 38. Rg3+ {[%clk 0:00:07.7]} 38... Kf6 {[%clk
0:00:13.4]} 39. a5 {[%clk 0:00:08.6]} 39... Ra6 {[%clk 0:00:11.8]} 40. Bb7
{[%clk 0:00:08.6]} 40... Ra7 {[%clk 0:00:12]} 41. a6 {[%clk 0:00:08.7]} 41...
Ke5 {[%clk 0:00:12.9]} 42. Re1 {[%clk 0:00:08.1]} 42... f5 {[%clk 0:00:13.8]}
43. Rge3 {[%clk 0:00:07.3]} 43... f4 {[%clk 0:00:14.7]} 44. Rxe4+ {[%clk
0:00:07.2]} 44... Kf5 {[%clk 0:00:15.6]} 45. b5 {[%clk 0:00:05.9]} 45... Rh3+
{[%clk 0:00:16.5]} 46. Kb4 {[%clk 0:00:05.8]} 46... Rxh2 {[%clk 0:00:17.3]} 47.
R1e2 {[%clk 0:00:05.7]} 47... Rh1 {[%clk 0:00:16.7]} 48. Re1 {[%clk 0:00:05.7]}
48... Rh2 {[%clk 0:00:16.5]} 49. R4e2 {[%clk 0:00:06.1]} 49... Rh3 {[%clk
0:00:14.3]} 50. Bc8+ {[%clk 0:00:05.8]} 50... Kf6 {[%clk 0:00:09.4]} 51. Bxh3
{[%clk 0:00:06.7]} 1-0